bitfinex-derivatives/quotes_SOLF0:USTF0_20251210
["timestamp","ask_amount","ask_price","bid_price","bid_amount"]
[1765404864457,9.209,136.56,136.49,9.7718]
[1765404864763,9.209,136.56,136.51,0.04744109]
[1765404864962,0.05481145,136.54,136.51,3.22744109]
[1765404866966,9.2103,136.53,136.51,0.04744109]
[1765404867155,2.57,136.51,136.44,3.18]
[1765404867755,9.1611,136.51,136.44,9.7743]
[1765404867972,6.5911,136.51,136.44,3.18]
[1765404868163,0.05383135,136.49,136.47,3.18]
[1765404868467,2.57,136.59,136.51,3.18]
[1765404868664,2.57,136.59,136.54,0.05003271]
[1765404868862,0.04913817,136.56,136.54,3.23003271]
[1765404869067,0.05498406,136.56,136.54,3.23544954]
[1765404869366,2.57,136.63,136.56,3.18]
[1765404870068,112.39617053,136.66,136.57,3.18]
[1765404870256,0.04951666,136.61,136.58,0.04744554]
[1765404870761,6.63581666,136.61,136.58,0.04744554]
[1765404871560,0.04951666,136.61,136.58,0.04744554]
[1765404871766,0.04951666,136.61,136.58,3.22744554]
[1765404872561,0.04951666,136.61,136.58,9.81494554]
[1765404872769,0.04951666,136.61,136.58,3.22744554]
[1765404873981,2.57,136.71,136.61,3.3]
[1765404874272,104.94,136.73,136.63,3.3]
[1765404874465,6.5812,136.72,136.64,3.3]
[1765404874663,104.941,136.72,136.64,3.3]
[1765404874872,0.04917976,136.69,136.67,0.05404907]
[1765404875074,6.63167976,136.69,136.67,0.05404907]
[1765404875962,0.04917976,136.69,136.67,0.05404907]
[1765404876167,0.04917976,136.69,136.67,3.35404907]
[1765404877370,2.61917976,136.69,136.67,0.05404907]
[1765404877764,0.04917976,136.69,136.67,0.05404907]
[1765404878771,0.04917976,136.69,136.67,3.35404907]
[1765404879871,2.57,136.75,136.68,6.5826]
[1765404880174,2.57,136.75,136.68,3.3]
[1765404880669,6.5803,136.74,136.68,9.8826]
[1765404880873,0.0523123,136.72,136.7,0.04642275]
[1765404881267,2.52,136.65,136.59,3.3]
[1765404882072,6.584,136.66,136.59,3.3]
[1765404882260,0.04612757,136.64,136.61,0.05142639]
[1765404882769,0.04612757,136.64,136.61,3.35142639]
[1765404885782,6.63112757,136.64,136.61,0.05142639]
[1765404886465,0.04612757,136.64,136.61,0.05142639]
[1765404888279,0.04612757,136.64,136.61,3.35142639]
[1765404891673,0.04612757,136.64,136.61,9.93752639]
[1765404891872,0.04612757,136.64,136.61,3.35142639]
[1765404895573,9.97827053,136.7,136.61,3.35142639]
[1765404895777,6.5826,136.69,136.65,3.3]
[1765404896575,0.05402757,136.68,136.66,0.05282921]
[1765404896783,2.52,136.74,136.67,3.3]
[1765404897570,1.2730931,136.76,136.7,3.3]
[1765404897769,0.05350105,136.74,136.72,3.35146841]
[1765404897975,0.05383888,136.74,136.72,3.35146841]
[1765404898980,0.05383888,136.74,136.72,0.05146841]
[1765404899281,6.63403888,136.74,136.72,0.05146841]
[1765404899683,6.63403888,136.74,136.66,62.2]
[1765404899684,2.52,136.73,136.66,72.0835]
[1765404899888,2.52,136.73,136.66,65.5]
[1765404900182,6.5819,136.7,136.66,3.3]
[1765404900378,167.0434,136.76,136.66,3.3]
[1765404900578,104.8795,136.74,136.66,3.3]
[1765404900889,0.05454499,136.72,136.64,3.3]
[1765404901182,104.8484,136.71,136.64,3.3]
[1765404901379,2.47,136.68,136.6,3.3]
[1765404901785,0.05017646,136.65,136.63,0.05137319]
[1765404902080,0.05017646,136.65,136.63,3.35137319]
[1765404902485,0.05017646,136.65,136.63,0.05137319]
[1765404902983,2.47,136.64,136.63,0.05137319]
[1765404903187,0.05017646,136.65,136.63,0.05137319]
[1765404903686,0.05017646,136.65,136.63,3.35137319]
[1765404903888,2.47,136.72,136.64,3.3]
[1765404904388,2.47,136.72,136.65,3.3]
[1765404904876,0.05120759,136.7,136.67,3.35556667]
[1765404905084,2.48,136.69,136.67,0.05556667]
[1765404905381,2.48,136.69,136.6,65.5]
[1765404905582,2.48,136.69,136.58,102.4722]
[1765404905583,2.48,136.66,136.58,3.3]
[1765404905780,177.7247,136.71,136.58,3.3]
[1765404905781,2.48,136.72,136.66,3.3]
[1765404905985,2.48,136.7,136.62,3.3]
[1765404906186,0.04751217,136.67,136.65,0.05442451]
[1765404906784,2.48,136.66,136.59,3.3]
[1765404907300,5.71303464,136.61,136.54,3.3]
[1765404907687,8.19303464,136.58,136.51,62.2]
[1765404907892,0.05474178,136.56,136.53,3.35626118]
[1765404908099,0.05474178,136.56,136.53,0.05626118]
[1765404908588,5.71303464,136.55,136.53,0.05626118]
[1765404908914,2.48,136.54,136.53,0.05626118]
[1765404909597,14.78213464,136.55,136.53,0.05626118]
[1765404910097,6.5903,136.53,136.46,9.8934]
[1765404910492,8.19303464,136.52,136.46,3.3]
[1765404910994,2.48,136.51,136.43,3.05]
[1765404911196,2.53334353,136.5,136.43,3.05]
[1765404911403,2.48,136.48,136.46,0.04952436]
[1765404912489,2.48,136.47,136.41,62.2]
[1765404912894,5.71303464,136.49,136.42,3.05]
[1765404913091,105.0039,136.52,136.42,3.05]
[1765404913296,8.19303464,136.51,136.42,3.05]
[1765404913512,0.04975207,136.48,136.42,3.05]
[1765404913998,0.04975207,136.48,136.42,9.645]
[1765404914504,14.83558671,136.48,136.42,3.05]
[1765404914798,0.04975207,136.48,136.46,3.05]
[1765404914994,5.71303464,136.55,136.47,3.05]
[1765404915404,9.0688,136.56,136.48,3.05]
[1765404915704,102.4625,136.6,136.51,3.05]
[1765404915705,9.0667,136.6,136.51,3.05]
[1765404916104,0.0515434,136.57,136.54,0.05504991]
[1765404916299,9.1197434,136.57,136.54,0.05504991]
[1765404916705,2.48,136.55,136.54,0.05504991]
[1765404917091,2.48,136.55,136.48,3.05]
[1765404917092,9.0695,136.55,136.48,3.05]
[1765404917292,102.4839,136.57,136.48,3.05]
[1765404917910,2.48,136.59,136.5,3.05]
[1765404918209,0.05586732,136.54,136.5,3.05]
[1765404918403,0.05586732,136.54,136.5,105.5851]
[1765404918604,0.05586732,136.54,136.51,3.05]
[1765404919199,164.6756,136.61,136.51,3.05]
[1765404919500,2.48,136.63,136.54,3.05]
[1765404919705,102.4266,136.65,136.57,3.05]
[1765404919905,62.24,136.66,136.57,3.05]
[1765404920408,0.04735834,136.63,136.61,3.05]
[1765404921409,62.24,136.7,136.62,3.05]
[1765404921616,2.54,136.71,136.62,3.05]
[1765404921804,2.54,136.71,136.63,3.05]
[1765404921805,102.3785,136.71,136.63,3.05]
[1765404922009,102.3733,136.72,136.63,3.05]
[1765404922209,102.3781,136.71,136.63,3.05]
[1765404922404,0.04647651,136.68,136.66,0.05555345]
[1765404924207,2.58647651,136.68,136.59,3.05]
[1765404924405,2.54,136.68,136.59,3.05]
[1765404924607,108.09113464,136.71,136.61,3.05]
[1765404925009,2.54,136.72,136.64,3.05]
[1765404925209,104.9216,136.71,136.64,3.05]
[1765404925509,0.00046166,136.69,136.67,3.10382447]
[1765404925709,6.5795,136.75,136.67,3.10382447]
[1765404925710,6.5795,136.75,136.68,3.05]
[1765404926613,0.05471512,136.73,136.7,3.10220638]
[1765404928107,104.971,136.71,136.62,3.05]
[1765404928312,104.9257,136.7,136.62,3.05]
[1765404929000,9.122,136.7,136.62,3.05]
[1765404929207,0.05316107,136.67,136.65,0.05300548]
[1765404929709,0.05316107,136.67,136.65,3.10300548]
[1765404930108,6.5802,136.74,136.66,3.05]
[1765404930509,2.59,136.76,136.68,3.05]
[1765404931010,0.05273075,136.73,136.71,0.05503171]
[1765404931215,2.64273075,136.73,136.71,0.05503171]
[1765404931513,2.64273075,136.73,136.65,62.2]
[1765404931514,2.53,136.69,136.65,62.2]
[1765404932111,102.3815,136.71,136.65,62.2]
[1765404932311,14.87764503,136.69,136.67,0.05275428]
[1765404933114,2.53,136.68,136.67,0.05275428]
[1765404933614,3.99,136.68,136.67,0.05275428]
[1765404935812,2.48,136.66,136.58,6.5874]
[1765404936022,110.61273464,136.66,136.57,65.42]
[1765404936506,6.5854,136.63,136.57,65.42]
[1765404937017,0.05578699,136.61,136.58,3.22]
[1765404937219,6.5835,136.67,136.59,3.22]
[1765404937718,2.48,136.67,136.59,3.22]
[1765404937915,6.5845,136.65,136.59,9.8068]
[1765404938212,0.04993979,136.63,136.61,0.05045449]
[1765404939116,0.04993979,136.63,136.61,3.27045449]
[1765404939414,0.04993979,136.63,136.61,0.05045449]
[1765404941320,0.04993979,136.63,136.61,3.27045449]
[1765404941717,62.2,136.7,136.61,4.73045449]
[1765404941918,62.2,136.7,136.61,3.22]
[1765404942118,6.583,136.68,136.62,9.8054]
[1765404942723,0.05448058,136.66,136.64,0.0504048]
[1765404945723,0.05448058,136.66,136.64,3.2704048]
[1765404946125,2.53448058,136.66,136.64,0.0004048]
[1765404946424,0.05448058,136.66,136.64,0.0004048]
[1765404946721,9.06858058,136.66,136.64,0.0004048]
[1765404946921,2.43,136.65,136.64,0.0004048]
[1765404947113,2.43,136.65,136.58,3.22]
[1765404947313,9.0148,136.64,136.59,9.8071]
[1765404947614,2.43,136.64,136.6,3.22]
[1765404948133,0.05267396,136.63,136.61,0.04624946]
[1765404949219,0.05267396,136.63,136.61,9.85214946]
[1765404949526,0.05267396,136.63,136.62,3.22]
[1765404950227,8.19303464,136.73,136.64,3.22]
[1765404951017,2.48,136.73,136.67,3.22]
[1765404951220,0.04655014,136.71,136.69,0.0497367]
[1765404951427,0.04655014,136.71,136.69,3.2697367]
[1765404952219,0.04655014,136.71,136.69,9.8519367]
[1765404952430,2.48,136.78,136.7,3.22]
[1765404952827,2.48,136.77,136.7,3.22]
[1765404953427,6.5801,136.74,136.72,0.05123707]
[1765404953632,2.48,136.73,136.72,0.05123707]
[1765404955127,2.48,136.72,136.64,3.22]
[1765404955532,2.48,136.72,136.66,6.5837]
[1765404956034,2.48,136.7,136.65,6.5842]
[1765404956236,0.04707023,136.69,136.67,0.04672268]
[1765404956837,2.52707023,136.69,136.67,0.04672268]
[1765404957138,2.52707023,136.69,136.61,3.22]
[1765404957940,2.48,136.65,136.58,62.18]
[1765404958138,0.04657166,136.63,136.6,0.05196832]
[1765404958330,2.52657166,136.63,136.6,0.05196832]
[1765404959040,2.48,136.61,136.6,0.05196832]
[1765404959234,8.19303464,136.61,136.6,0.05196832]
[1765404960839,2.43,136.58,136.5,3.22]
[1765404961142,2.43,136.54,136.47,9.8127]
[1765404961339,2.43,136.54,136.47,3.22]
[1765404961645,0.05151347,136.52,136.45,3.22]
[1765404961935,0.05151347,136.52,136.47,3.22]
[1765404962140,0.05151347,136.52,136.48,3.22]
[1765404962342,0.05151347,136.52,136.48,105.7667]
[1765404962537,0.05151347,136.52,136.45,3.22]
[1765404963141,2.48151347,136.52,136.45,3.22]
[1765404963739,0.05151347,136.52,136.46,9.8131]
[1765404964743,0.05151347,136.52,136.48,3.1]
[1765404964946,451.54705987,136.62,136.51,3.1]
[1765404964947,2.44,136.6,136.51,3.1]
[1765404965149,2.44,136.63,136.56,3.1]
[1765404965334,5.71303464,136.66,136.56,3.1]
[1765404965335,8.15303464,136.66,136.56,3.1]
[1765404965533,2.44,136.66,136.58,3.1]
[1765404965734,2.44,136.7,136.6,105.5572]
[1765404965938,5.71303464,136.72,136.63,3.1]
[1765404966134,0.05146907,136.69,136.64,0.04748349]
[1765404966344,2.49146907,136.69,136.64,0.04748349]
[1765404967043,0.05146907,136.69,136.64,3.14748349]
[1765404968740,9.07406907,136.69,136.64,0.04748349]
[1765404969847,9.07406907,136.69,136.64,3.31748349]
[1765404970045,0.05146907,136.69,136.64,3.31748349]
[1765404971148,0.05146907,136.69,136.65,3.27]
[1765404972440,0.05146907,136.69,136.65,9.8539]
[1765404972638,0.05146907,136.69,136.65,3.27]
[1765404975045,0.05146907,136.69,136.64,0.04748349]
[1765404975246,0.05146907,136.69,136.64,3.31748349]
[1765404976055,6.63406907,136.69,136.64,3.31748349]
[1765404976359,2.48146907,136.69,136.64,3.31748349]
[1765404977254,6.5837,136.67,136.64,0.04748349]
[1765404977745,2.48146907,136.69,136.64,0.04748349]
[1765404978144,9.06406907,136.69,136.64,3.31748349]
[1765404978348,0.05146907,136.69,136.64,3.31748349]
[1765404978546,2.48146907,136.69,136.64,3.31748349]
[1765404979353,6.583,136.68,136.64,3.31748349]
[1765404979953,9.013,136.68,136.64,0.04748349]
[1765404980456,2.43,136.66,136.64,0.04748349]
[1765404981152,0.05146907,136.69,136.64,3.31748349]
[1765404981352,0.05146907,136.69,136.65,3.27]
[1765404981951,0.05146907,136.69,136.67,3.27]
[1765404982150,2.43,136.77,136.67,3.27]
[1765404982362,104.7721,136.76,136.67,3.27]
[1765404982655,2.43,136.75,136.67,3.27]
[1765404983251,0.04744748,136.72,136.7,0.05321362]
[1765404983761,9.05854748,136.72,136.7,0.05321362]
[1765404984961,0.04744748,136.72,136.7,0.05321362]
[1765404985163,2.43,136.68,136.59,3.27]
[1765404985457,102.3971,136.69,136.57,111.46569891]
[1765404985458,6.5835,136.67,136.61,9.8561]
[1765404985662,104.8387,136.67,136.61,3.27]
[1765404986056,6.5848,136.64,136.63,0.05093965]
[1765404986363,0.05001496,136.65,136.62,0.0527735]
[1765404986559,0.0526201,136.65,136.62,0.05438693]
[1765404986760,6.585,136.64,136.62,0.05438693]
[1765404986974,0.0526201,136.65,136.62,0.05438693]
[1765404987661,2.43,136.64,136.62,0.05438693]
[1765404987864,0.0526201,136.65,136.62,0.05438693]
[1765404989259,2.4826201,136.65,136.62,0.05438693]
[1765404989457,6.5849,136.64,136.62,0.05438693]
[1765404990571,2.4826201,136.65,136.62,0.05438693]
[1765404991160,0.0526201,136.65,136.62,3.32438693]
[1765404991366,102.3814,136.71,136.62,3.32438693]
[1765404991662,6.5835,136.67,136.62,3.27]
[1765404991867,2.43,136.67,136.62,3.27]
[1765404992366,0.04769589,136.66,136.63,3.31743005]
[1765404993060,2.43,136.65,136.57,3.27]
[1765404993263,102.4611,136.6,136.53,3.27]
[1765404993465,2.43,136.6,136.53,3.27]
[1765404994266,0.05022449,136.58,136.55,0.04721892]
[1765404994656,0.05022449,136.58,136.55,3.12721892]
[1765404995359,0.05022449,136.58,136.55,9.71621892]
[1765404995760,12.37108962,136.64,136.56,3.08]
[1765404995960,2.43,136.68,136.59,3.08]
[1765404996561,2.43,136.68,136.63,3.08]
[1765404996760,2.43,136.68,136.59,3.08]
[1765404996976,0.0556216,136.67,136.64,0.04988574]
[1765404997772,2.4856216,136.67,136.64,0.04988574]
[1765404997976,9.0690216,136.67,136.64,0.04988574]
[1765404998173,2.4856216,136.67,136.64,0.04988574]
[1765404999172,6.5839,136.66,136.64,0.04988574]
[1765405000063,0.0556216,136.67,136.64,3.12988574]
[1765405001662,2.4856216,136.67,136.64,0.04988574]
[1765405001865,2.43,136.66,136.64,0.04988574]
[1765405002077,6.5863,136.61,136.57,65.28]
[1765405002278,104.861,136.64,136.57,3.08]
[1765405002576,102.4347,136.64,136.57,3.08]
[1765405002773,104.8492,136.66,136.57,3.08]
[1765405003075,0.05338111,136.63,136.6,0.05280991]
[1765405004071,6.63888111,136.63,136.6,0.05280991]
[1765405005275,0.05338111,136.63,136.6,3.13280991]
[1765405007575,0.05338111,136.63,136.6,0.05280991]
[1765405007875,0.05338111,136.63,136.6,3.13280991]
[1765405008071,0.05338111,136.63,136.6,0.05280991]
[1765405008965,2.48338111,136.63,136.6,0.05280991]
[1765405009162,0.05338111,136.63,136.6,0.05280991]
[1765405009566,0.05338111,136.63,136.6,3.13280991]
[1765405010263,2.43,136.62,136.6,0.05280991]
[1765405010471,2.43,136.62,136.54,3.08]
[1765405010472,104.8986,136.59,136.54,3.08]
[1765405010673,6.5883,136.57,136.51,3.08]
[1765405011181,102.4834,136.57,136.51,3.08]
[1765405011480,0.05213043,136.55,136.48,3.08]
[1765405011772,0.05213043,136.55,136.5,3.08]
[1765405011773,6.5897,136.54,136.5,3.08]
[1765405012079,0.051384,136.53,136.5,3.08]
[1765405012973,6.641584,136.53,136.47,9.6727]
[1765405013579,0.051384,136.53,136.47,3.08]
[1765405014583,102.567284,136.53,136.47,3.08]
[1765405015575,102.5238,136.52,136.43,9.6748]
[1765405015784,0.05587153,136.49,136.43,9.6748]
[1765405016164,0.05587153,136.49,136.43,3.08]
[1765405016571,2.43,136.48,136.41,62.22]
[1765405016773,0.0539359,136.46,136.42,3.08]
[1765405016974,6.6477359,136.46,136.42,3.08]
[1765405017175,0.0539359,136.46,136.42,3.08]
[1765405020594,0.0539359,136.46,136.38,102.6217]
[1765405020595,2.43,136.45,136.38,3.08]
[1765405020781,0.05360141,136.43,136.38,3.08]
[1765405020977,105.0272,136.42,136.36,62.24]
[1765405021184,2.43,136.4,136.34,3.08]
[1765405021490,2.48113556,136.38,136.3,65.34]
[1765405021884,6.5985,136.36,136.3,65.34]
[1765405022088,0.04760252,136.34,136.3,65.34]
[1765405022387,9.07710252,136.34,136.27,10.21311004]
[1765405022687,0.04760252,136.34,136.28,3.08]
[1765405023183,0.04760252,136.34,136.29,9.6813]
[1765405023390,0.04760252,136.34,136.3,3.08]
[1765405023590,0.04760252,136.34,136.28,3.08]
[1765405023984,0.04760252,136.34,136.3,9.9009]
[1765405024284,0.04760252,136.34,136.28,3.3]
[1765405024482,6.6005,136.32,136.27,3.61051004]
[1765405024680,0.04966869,136.31,136.28,3.3]
[1765405024880,115.03638962,136.41,136.31,3.3]
[1765405025082,6.5971,136.39,136.32,9.8999]
[1765405025384,2.49,136.38,136.32,3.3]
[1765405025587,6.5985,136.36,136.29,3.3]
[1765405025780,6.5985,136.36,136.31,0.04996464]
[1765405025985,0.05278722,136.34,136.31,0.04996464]
[1765405026290,9.09,136.33,136.31,0.04996464]
[1765405028184,2.49,136.32,136.31,0.04996464]
[1765405030498,2.44,136.3,136.27,3.61051004]
[1765405030698,2.44,136.28,136.27,3.61051004]
[1765405031089,105.1451,136.28,136.2,3.3]
[1765405031296,110.89093109,136.27,136.2,3.3]
[1765405031502,6.6053,136.22,136.15,3.3]
[1765405031700,0.05618296,136.2,136.17,3.3]
[1765405031996,2.44,136.33,136.26,6.6029]
[1765405032201,9.04,136.33,136.26,9.9029]
[1765405032398,2.44,136.36,136.27,3.3]
[1765405032592,105.0886,136.35,136.27,3.3]
[1765405032786,0.04813145,136.32,136.3,0.05569374]
[1765405032990,0.04813145,136.32,136.3,3.35569374]
[1765405039107,0.04813145,136.32,136.3,0.05569374]
[1765405039499,6.64853145,136.32,136.3,0.05569374]
[1765405039701,105.1216,136.31,136.23,3.3]
[1765405039999,102.72413145,136.32,136.23,3.3]
[1765405040000,6.6019,136.29,136.23,3.3]
[1765405040198,102.6935,136.29,136.23,3.3]
[1765405040803,102.6935,136.29,136.19,9.9062]
[1765405040804,105.20230947,136.27,136.19,9.9062]
[1765405041004,105.1566,136.26,136.19,3.3]
[1765405041303,2.49016121,136.24,136.19,3.3]
[1765405041505,6.6052,136.22,136.16,3.3]
[1765405041704,0.04992443,136.2,136.16,3.3]
[1765405042007,0.04992443,136.2,136.13,9.9093]
[1765405042008,6.6067,136.19,136.13,9.9093]
[1765405042300,0.05362442,136.17,136.14,3.3]
[1765405042600,0.04951456,136.17,136.14,3.3]
[1765405042815,2.48951456,136.17,136.1,62.34]
[1765405043137,0.04951456,136.17,136.14,3.3]
[1765405043900,0.04951456,136.17,136.12,3.3]
[1765405044103,0.04832358,136.16,136.12,3.3]
[1765405044898,102.7417,136.23,136.14,3.3]
[1765405045101,105.2237,136.24,136.15,3.3]
[1765405045293,102.7394,136.23,136.15,3.3]
[1765405045698,110.96493109,136.24,136.16,3.3]
[1765405045906,102.6937,136.29,136.22,3.3]
[1765405046208,0.04840211,136.27,136.24,3.35129102]
[1765405047004,0.04840211,136.27,136.26,3.3]
[1765405047701,13.1887,136.45,136.32,6.5999]
[1765405047905,102.6346,136.37,136.3,3.3]
[1765405048098,102.6419,136.36,136.3,3.3]
[1765405048303,6.6026,136.27,136.21,3.3]
[1765405048509,105.2127,136.32,136.21,3.3]
[1765405048510,105.2127,136.32,136.22,3.3]
[1765405048706,0.05072551,136.28,136.26,3.34953038]
[1765405049207,0.05072551,136.28,136.26,0.04953038]
[1765405049593,9.19312551,136.28,136.26,0.04953038]
[1765405050408,2.54,136.27,136.26,0.04953038]
[1765405050615,6.6045,136.24,136.18,3.3]
[1765405051007,6.6045,136.24,136.18,9.9068]
[1765405051208,102.7173,136.26,136.19,3.3]
[1765405051403,173.35263109,136.27,136.19,3.3]
[1765405051605,0.04857289,136.24,136.22,0.05022408]
[1765405052906,6.65297289,136.24,136.22,0.05022408]
[1765405053806,0.04857289,136.24,136.22,0.05022408]
[1765405054613,0.04857289,136.24,136.22,3.30022408]
[1765405055014,0.04857289,136.24,136.22,0.05022408]
[1765405055517,9.14287289,136.24,136.22,0.05022408]
[1765405056206,6.65287289,136.24,136.22,0.05022408]
[1765405059807,6.6059,136.21,136.14,65.61]
[1765405060009,2.44,136.2,136.14,65.61]
[1765405060406,6.6072,136.18,136.14,65.61]
[1765405060607,2.44,136.18,136.1,3.25]
[1765405060808,0.04636424,136.15,136.12,3.25]
[1765405061012,6.6063,136.2,136.14,9.8588]
[1765405061414,0.05120268,136.18,136.16,3.25]
[1765405061616,62.38,136.23,136.16,3.25]
[1765405061911,102.7241,136.25,136.18,3.25]
[1765405062614,0.05431555,136.23,136.2,3.29771789]
[1765405062915,2.54431555,136.23,136.2,0.04771789]
[1765405063510,6.6053,136.22,136.2,0.04771789]
[1765405063914,0.05431555,136.23,136.2,3.29771789]
[1765405065109,2.49,136.21,136.12,3.25]
[1765405065307,105.2464,136.21,136.12,3.25]
[1765405065718,6.6075,136.18,136.12,3.25]
[1765405066119,0.04997341,136.16,136.12,3.25]
[1765405067218,0.04997341,136.16,136.12,9.8598]
[1765405067525,0.04997341,136.16,136.13,3.25]
[1765405070721,0.04997341,136.16,136.09,3.25]
[1765405071224,6.6091,136.14,136.1,3.25]
[1765405071617,111.0375045,136.16,136.06,3.25]
[1765405071820,0.05143221,136.12,136.07,3.25]
[1765405072120,6.66143221,136.12,136.08,3.25]
[1765405072530,0.05143221,136.12,136.08,3.25]
[1765405072922,102.7576,136.21,136.08,3.25]
[1765405072923,105.2076,136.21,136.11,3.25]
[1765405073224,2.45,136.19,136.11,3.25]
[1765405073420,105.2296,136.18,136.11,3.25]
[1765405073612,2.45,136.17,136.11,3.25]
[1765405074023,2.50056283,136.15,136.13,0.05532549]
[1765405074237,2.45,136.14,136.08,3.25]
[1765405074526,102.9167,136.0,135.89,102.9938]
[1765405074719,102.9167,136.0,135.87,103.0066]
[1765405074720,108.67123109,135.98,135.87,103.0066]
[1765405074913,108.67123109,135.98,135.84,103.0301]
[1765405074914,5.74123109,135.95,135.84,103.0331]
[1765405075118,22.01,136.0,135.89,109.6134]
[1765405075427,0.04799248,135.96,135.89,102.9926]
[1765405075621,0.04799248,135.96,135.9,165.4044]
[1765405076327,0.04799248,135.96,135.9,172.0279]
[1765405076530,0.04799248,135.96,135.91,3.25]
[1765405077119,102.8778,136.05,135.95,3.25]
[1765405077618,102.8944,136.03,135.95,3.25]
[1765405077823,109.5132,136.02,135.95,3.25]
[1765405078321,6.66736634,136.0,135.97,0.04826895]
[1765405078717,109.58106634,136.0,135.97,0.04826895]
[1765405078919,109.5529,135.97,135.9,3.25]
[1765405079123,115.29413109,135.97,135.9,3.25]
[1765405079821,102.9579,135.94,135.87,62.44]
[1765405080023,0.04716072,135.92,135.86,3.25]
[1765405080223,0.04716072,135.92,135.87,3.25]
[1765405080833,0.04716072,135.92,135.89,3.25]
[1765405081027,102.8702,136.06,135.96,3.25]
[1765405081222,102.8614,136.07,135.96,3.25]
[1765405081223,108.60263109,136.07,135.98,3.25]
[1765405081534,109.4638,136.08,135.99,3.25]
[1765405081732,102.8679,136.06,135.99,3.25]
[1765405081939,0.05274251,136.04,136.01,3.30047733]
[1765405084227,5.7939736,136.04,136.01,0.05047733]
[1765405084434,0.05274251,136.04,136.01,0.05047733]
[1765405084627,0.05274251,136.04,136.01,3.16047733]
[1765405086922,108.55723109,136.13,136.02,3.11]
[1765405087128,6.6114,136.1,136.02,3.11]
[1765405087930,0.05100969,136.07,136.06,3.11]
[1765405088831,0.05100969,136.07,136.05,3.16309833]
[1765405089827,0.05100969,136.07,136.05,0.05309833]
[1765405091736,0.05100969,136.07,136.05,3.19309833]
[1765405092129,0.05100969,136.07,136.05,0.05309833]
[1765405092526,102.9028,136.02,135.97,3.14]
[1765405092729,102.9028,136.02,135.94,3.14]
[1765405093033,6.6165,135.99,135.94,3.14]
[1765405093232,102.9125,136.0,135.94,3.14]
[1765405093439,102.9283,135.98,135.89,62.46]
[1765405093734,102.9283,135.98,135.87,103.0086]
[1765405093735,6.66555551,135.95,135.92,0.05340571]
[1765405093926,0.04735551,135.95,135.92,3.19340571]
[1765405094237,6.66575551,135.95,135.92,0.05340571]
[1765405094738,6.47825551,135.95,135.92,0.05340571]
[1765405095034,6.619,135.94,135.92,0.05340571]
[1765405095237,6.619,135.94,135.8,103.0598]
[1765405095238,102.9585,135.94,135.84,65.62]
[1765405095433,10.02497878,135.92,135.83,3.14]
[1765405095654,102.9199,135.99,135.88,3.14]
[1765405095940,102.9657,135.93,135.84,65.62]
[1765405096140,102.9736,135.92,135.85,3.14]
[1765405096341,0.05364866,135.9,135.87,0.05009867]
[1765405098443,112.95607878,135.98,135.89,3.14]
[1765405098444,102.9311,135.98,135.89,3.14]
[1765405098627,10.02497878,135.98,135.75,3.14]
[1765405098833,1.28103661,135.9,135.83,3.14]
[1765405099032,102.9756,135.92,135.83,3.14]
[1765405099239,102.9804,135.91,135.83,3.14]
[1765405099435,103.0271,135.85,135.79,3.14]
[1765405099637,103.0271,135.85,135.75,103.0983]
[1765405099638,0.05017735,135.83,135.81,0.05349158]
[1765405100856,109.71747735,135.83,135.81,0.05349158]
[1765405101141,103.09307735,135.83,135.75,3.14]
[1765405101344,103.0571,135.81,135.75,3.14]
[1765405102233,103.0571,135.81,135.72,6.6292]
[1765405102234,0.05309849,135.79,135.77,0.05165982]